bitfinex/quotes_BTCUSD_20250204
["timestamp","ask_amount","ask_price","bid_price","bid_amount"]
[1738639947087,0.38836634,100670.0,100660.0,0.0001067]
[1738639948665,0.4958235,100670.0,100660.0,0.0001067]
[1738639949057,0.39332878,100670.0,100660.0,0.0001067]
[1738639950519,0.40311308,100670.0,100660.0,0.0001067]
[1738639951511,0.25411208,100670.0,100660.0,0.0001067]
[1738639951864,0.25407208,100670.0,100660.0,0.0001067]
[1738639952114,0.24683208,100670.0,100660.0,0.0001067]
[1738639952309,0.25407208,100670.0,100660.0,0.0001067]
[1738639953319,0.25106407,100670.0,100660.0,0.0001067]
[1738639953614,0.25106407,100670.0,100660.0,0.1491227]
[1738639953815,0.26077923,100670.0,100660.0,0.1491227]
[1738639954515,0.15115417,100670.0,100660.0,0.28158361]
[1738639954721,0.14143901,100670.0,100660.0,0.28158361]
[1738639955516,0.12970028,100670.0,100660.0,0.28158361]
[1738639955715,2.8e-07,100670.0,100660.0,0.43158361]
[1738639957866,0.04520028,100670.0,100660.0,0.43158361]
[1738639959964,0.04520028,100670.0,100660.0,0.44255784]
[1738639960884,0.13571544,100670.0,100660.0,0.44255784]
[1738639963129,0.13571544,100670.0,100660.0,0.01108093]
[1738639963260,0.37738634,100670.0,100660.0,0.0001067]
[1738639963470,0.22838534,100670.0,100660.0,0.0001067]
[1738639964288,0.24012015,100670.0,100660.0,0.0001067]
[1738639964913,0.56182015,100670.0,100660.0,0.0001067]
[1738639965154,0.57153531,100670.0,100660.0,0.0001067]
[1738639965514,0.55008534,100670.0,100660.0,0.0001067]
[1738639965717,0.5598005,100670.0,100660.0,0.0001067]
[1738639965918,0.5598005,100670.0,100660.0,0.1491227]
[1738639966420,0.45741544,100670.0,100660.0,0.1491227]
[1738639966799,0.45741544,100670.0,100660.0,0.28158361]
[1738639968631,0.45741544,100670.0,100660.0,0.1491227]
[1738639969799,0.44770028,100670.0,100660.0,0.28158361]
[1738639970005,0.45741544,100670.0,100660.0,0.28158361]
[1738639970413,0.45741544,100670.0,100660.0,0.1491227]
[1738639971827,0.45741544,100670.0,100660.0,0.28158361]
[1738639972032,0.44770028,100670.0,100660.0,0.28158361]
[1738639972232,0.45741544,100670.0,100660.0,0.28158361]
[1738639972613,0.44770028,100670.0,100660.0,0.28158361]
[1738639972815,0.45741544,100670.0,100660.0,0.28158361]
[1738639973500,0.45741544,100670.0,100660.0,0.1491227]
[1738639975042,0.4548047,100670.0,100660.0,0.1491227]
[1738639980483,0.4548047,100670.0,100660.0,0.28158361]
[1738639980821,0.45502898,100670.0,100660.0,0.28158361]
[1738639981136,0.45502898,100670.0,100660.0,0.1491227]
[1738639981365,0.69669988,100670.0,100660.0,0.0001067]
[1738639982684,0.70648418,100670.0,100660.0,0.0001067]
[1738639984439,0.38478418,100670.0,100660.0,0.0001067]
[1738639985068,0.14151516,100650.0,100640.0,0.35987604]
[1738639985273,0.09251516,100640.0,100620.0,0.2083408]
[1738639985478,0.19490022,100640.0,100630.0,0.00047326]
[1738639986293,0.18518506,100640.0,100630.0,0.00047326]
[1738639987168,0.65593106,100640.0,100630.0,0.00047326]
[1738639987308,0.70493106,100640.0,100630.0,0.00047326]
[1738639988228,0.69160441,100640.0,100630.0,0.00047326]
[1738639988773,0.54255841,100640.0,100630.0,0.00047326]
[1738639988952,0.69160441,100640.0,100630.0,0.00047326]
[1738639991619,0.36990441,100640.0,100630.0,0.00047326]
[1738639993375,0.36990441,100640.0,100630.0,0.00058006]
[1738639999444,0.52470779,100640.0,100630.0,0.00058006]
[1738640000002,0.13861516,100620.0,100610.0,0.30910059]
[1738640000870,0.13861516,100620.0,100610.0,0.4415615]
[1738640001435,0.13861516,100620.0,100610.0,0.30910059]
[1738640001816,0.05901516,100620.0,100610.0,0.4415615]
[1738640002025,0.00971516,100620.0,100610.0,0.4415615]
[1738640002228,0.16550379,100630.0,100620.0,0.149075]
[1738640002465,0.25817369,100630.0,100620.0,0.149075]
[1738640002864,0.27508885,100630.0,100620.0,0.149075]
[1738640003083,0.26537369,100630.0,100620.0,0.149075]
[1738640003288,0.27508885,100630.0,100620.0,0.149075]
[1738640003489,0.00971516,100620.0,100610.0,0.4415615]
[1738640003688,0.56750022,100630.0,100620.0,0.149075]
[1738640004258,0.55778506,100630.0,100620.0,0.149075]
[1738640004470,0.00971516,100620.0,100610.0,0.50787459]
[1738640006100,0.00971516,100620.0,100610.0,0.6403355]
[1738640006400,0.00971516,100620.0,100610.0,0.50787459]
[1738640007006,0.00971516,100620.0,100610.0,0.50798139]
[1738640007550,0.01711516,100620.0,100610.0,0.6404423]
[1738640008627,0.45791516,100630.0,100620.0,0.149075]
[1738640008819,0.46531516,100630.0,100620.0,0.149075]
[1738640013953,0.45791516,100630.0,100620.0,0.149075]
[1738640014162,0.45556,100630.0,100620.0,0.149075]
[1738640014452,0.00971516,100620.0,100610.0,0.30920739]
[1738640017805,0.00971516,100620.0,100610.0,0.4416683]
[1738640020410,0.50952616,100630.0,100620.0,0.149075]
[1738640020710,0.50952616,100630.0,100620.0,0.28153591]
[1738640020711,0.42360616,100630.0,100620.0,0.28153591]
[1738640020910,0.42596285,100630.0,100620.0,0.28153591]
[1738640021649,0.41864285,100630.0,100620.0,0.28153591]
[1738640021855,0.36834769,100630.0,100620.0,0.28153591]
[1738640022258,0.37806285,100630.0,100620.0,0.28153591]
[1738640022658,0.36102769,100630.0,100620.0,0.28153591]
[1738640022864,0.37074285,100630.0,100620.0,0.28153591]
[1738640023105,0.35123697,100630.0,100620.0,0.28153591]
[1738640023968,0.35123697,100630.0,100620.0,0.43153591]
[1738640024523,0.32192428,100630.0,100620.0,0.43153591]
[1738640025473,0.33163944,100630.0,100620.0,0.43153591]
[1738640026128,0.37953944,100630.0,100620.0,0.43153591]
[1738640026537,0.37953944,100630.0,100620.0,0.299075]
[1738640027479,0.05783944,100630.0,100620.0,0.299075]
[1738640027959,0.13373944,100630.0,100620.0,0.299075]
[1738640028370,0.13373944,100630.0,100620.0,0.43153591]
[1738640029973,0.04812428,100630.0,100620.0,0.43153591]
[1738640030177,0.05783944,100630.0,100620.0,0.43153591]
[1738640030971,0.12402428,100630.0,100620.0,0.299075]
[1738640031547,0.00971516,100620.0,100610.0,0.35798139]
[1738640031756,0.08561516,100620.0,100610.0,0.35798139]
[1738640032003,0.49998506,100620.0,100610.0,0.35798139]
[1738640032203,0.49998506,100620.0,100610.0,0.16011739]
[1738640032204,0.54868506,100620.0,100610.0,0.16011739]
[1738640032406,0.54868506,100620.0,100610.0,0.30920739]
[1738640033190,0.54868506,100620.0,100610.0,0.0001068]
[1738640033978,0.57799775,100620.0,100610.0,0.0001068]
[1738640035524,0.57799775,100620.0,100610.0,0.1491968]
[1738640037152,0.57799775,100620.0,100610.0,0.28165771]
[1738640037504,0.48532785,100620.0,100610.0,0.28165771]
[1738640038187,0.47561269,100620.0,100610.0,0.28165771]
[1738640039439,0.48532785,100620.0,100610.0,0.28165771]
[1738640039600,0.47561269,100620.0,100610.0,0.28165771]
[1738640039798,0.48532785,100620.0,100610.0,0.28165771]
[1738640040006,0.48532785,100620.0,100610.0,0.43165771]
[1738640040610,0.38743516,100620.0,100610.0,0.43165771]
[1738640041036,0.46783516,100620.0,100610.0,0.43165771]
[1738640041499,0.56050506,100620.0,100610.0,0.0001068]
[1738640042386,0.56050506,100620.0,100610.0,0.1491968]
[1738640042994,0.56546872,100620.0,100610.0,0.0001068]
[1738640043329,0.59485832,100620.0,100610.0,0.0001068]
[1738640043884,0.27315832,100620.0,100610.0,0.0001068]
[1738640045126,0.57273057,100620.0,100610.0,0.0001068]
[1738640045307,0.44026966,100620.0,100610.0,0.0001068]
[1738640045483,0.0813,100600.0,100590.0,0.33128391]
[1738640045704,0.18368506,100610.0,100590.0,0.33128391]
[1738640046038,0.0813,100610.0,100600.0,0.28156591]
[1738640046184,0.0813,100610.0,100600.0,0.13246091]
[1738640046588,0.11066132,100610.0,100600.0,0.13246091]
[1738640046788,0.00971516,100600.0,100590.0,0.68009891]
[1738640046968,0.02880103,100600.0,100590.0,0.68009891]
[1738640047904,0.02880103,100600.0,100590.0,0.82874198]
[1738640048104,0.02880103,100600.0,100590.0,0.68009891]
[1738640048541,0.00971516,100600.0,100590.0,0.68009891]
[1738640049533,0.10323533,100610.0,100600.0,0.149105]
[1738640049707,0.10323533,100610.0,100600.0,0.28156591]
[1738640049863,0.02193533,100610.0,100600.0,0.28156591]
[1738640050069,0.00047502,100610.0,100600.0,0.28156591]
[1738640051508,0.00779502,100610.0,100600.0,0.28156591]
[1738640051757,0.00779502,100610.0,100600.0,0.149105]
[1738640052577,0.00779502,100610.0,100600.0,0.28156591]
[1738640053056,0.00779502,100610.0,100600.0,0.149105]
[1738640054501,0.00779502,100610.0,100600.0,0.1492118]
[1738640055300,0.00779502,100610.0,100600.0,0.15979723]
[1738640057634,0.01751018,100610.0,100600.0,0.29225814]
[1738640057886,0.01751018,100610.0,100600.0,0.15979723]
[1738640057887,0.00779502,100610.0,100600.0,0.15979723]
[1738640058132,0.19088008,100610.0,100600.0,0.15979723]
[1738640058357,0.20059524,100610.0,100600.0,0.15979723]
[1738640058546,0.08849502,100610.0,100600.0,0.29225814]
[1738640058886,0.08849502,100610.0,100600.0,0.15979723]
[1738640061403,0.23878008,100610.0,100600.0,0.01069223]
[1738640062606,0.23878008,100610.0,100600.0,0.0001068]
[1738640063325,0.2485708,100610.0,100600.0,0.0001068]
[1738640063568,0.2485708,100610.0,100600.0,0.1492118]
[1738640063682,0.2485708,100610.0,100600.0,0.0001068]
[1738640065119,0.25353544,100610.0,100600.0,0.0001068]
[1738640070705,0.2485708,100610.0,100600.0,0.0001068]
[1738640072083,0.2484508,100610.0,100600.0,0.0001068]
[1738640072749,0.27331831,100610.0,100600.0,0.0001068]
[1738640072921,0.2484508,100610.0,100600.0,0.0001068]
[1738640073786,0.27789747,100610.0,100600.0,0.0001068]
[1738640075286,0.26810675,100610.0,100600.0,0.0001068]
[1738640075485,0.23866008,100610.0,100600.0,0.0001068]
[1738640078111,0.24847858,100610.0,100600.0,0.0001068]
[1738640079625,0.34062981,100610.0,100600.0,0.0001068]
[1738640079808,0.3266639,100610.0,100600.0,0.0001068]
[1738640080602,0.32688818,100610.0,100600.0,0.0001068]
[1738640083535,0.32688818,100610.0,100600.0,0.1492118]
[1738640083720,0.32692818,100610.0,100600.0,0.1492118]
[1738640083933,0.32692818,100610.0,100600.0,0.0001068]
[1738640084141,0.32692818,100610.0,100600.0,0.1492118]
[1738640084543,0.33673766,100610.0,100600.0,0.1492118]
[1738640085932,0.36673766,100610.0,100600.0,0.1492118]
[1738640086566,0.36673766,100610.0,100600.0,0.15978137]
[1738640087827,0.36173766,100610.0,100600.0,0.15978137]
[1738640090886,0.27373384,100610.0,100600.0,0.15978137]
[1738640099285,0.27369384,100610.0,100600.0,0.24684187]
[1738640100301,0.36169766,100610.0,100600.0,0.24684187]
[1738640100506,0.36169766,100610.0,100600.0,0.26353355]
[1738640101688,0.35449766,100610.0,100600.0,0.50059405]
[1738640101821,0.28552264,100610.0,100600.0,0.41353355]
[1738640102028,0.18313758,100610.0,100600.0,0.41353355]
[1738640102637,0.17593758,100610.0,100600.0,0.41353355]
[1738640102830,0.13523758,100610.0,100600.0,0.41353355]
[1738640103650,0.12803758,100610.0,100600.0,0.41353355]
[1738640103881,0.1253881,100610.0,100600.0,0.41353355]
[1738640104838,0.1253881,100610.0,100600.0,0.50059405]
[1738640105229,0.13510326,100610.0,100600.0,0.50059405]
[1738640105450,0.03738428,100610.0,100600.0,0.50059405]
[1738640105643,0.04709944,100610.0,100600.0,0.50059405]
[1738640106833,0.03738428,100610.0,100600.0,0.50059405]
[1738640107032,0.04709944,100610.0,100600.0,0.50059405]
[1738640107235,0.03022428,100610.0,100600.0,0.51884711]
[1738640107438,0.03022428,100610.0,100600.0,0.82989267]
[1738640107635,0.07775274,100620.0,100610.0,0.39279]
[1738640107839,0.07775274,100620.0,100610.0,0.6019976]
[1738640108238,0.07775274,100620.0,100610.0,0.4442371]
[1738640108612,0.07775274,100620.0,100610.0,0.5312976]
[1738640108818,0.07775274,100620.0,100610.0,0.4212371]
[1738640109223,0.07775274,100620.0,100610.0,0.5082976]
[1738640109727,0.06803758,100620.0,100610.0,0.5082976]
[1738640109929,0.06803758,100620.0,100610.0,0.6019976]
[1738640110129,0.07775274,100620.0,100610.0,0.6019976]
[1738640110391,0.06803758,100620.0,100610.0,0.6019976]
[1738640110748,0.07775274,100620.0,100610.0,0.6019976]
[1738640110988,0.00022428,100630.0,100620.0,0.322075]
[1738640111190,0.00738428,100640.0,100630.0,0.14906]
[1738640111434,0.00760856,100640.0,100630.0,0.27106524]
[1738640111633,0.00738428,100640.0,100630.0,0.27106524]
[1738640111810,0.00044856,100640.0,100630.0,0.50812574]
[1738640112198,0.00044856,100640.0,100630.0,0.53112574]
[1738640112601,0.00044856,100640.0,100630.0,0.48950077]
[1738640112793,0.00044856,100640.0,100630.0,0.51740077]
[1738640112996,0.01912904,100660.0,100630.0,0.82298186]
[1738640113206,0.01890476,100660.0,100650.0,0.41402306]
[1738640113404,0.01912904,100660.0,100650.0,0.45350972]
[1738640114031,0.01890476,100660.0,100650.0,0.45350972]
[1738640114345,0.01899918,100660.0,100650.0,0.28152703]
[1738640114539,0.00725442,100660.0,100650.0,0.28152703]
[1738640116292,0.0074787,100660.0,100650.0,0.28152703]
[1738640116803,0.0074787,100660.0,100650.0,0.41402306]
[1738640117227,0.0074787,100660.0,100650.0,0.42445473]
[1738640118197,0.00738903,100660.0,100650.0,0.42445473]
[1738640118427,0.00738903,100660.0,100650.0,0.2919587]
[1738640118969,0.19177409,100660.0,100650.0,0.2919587]
[1738640123368,0.24057409,100660.0,100650.0,0.15946267]
[1738640123776,0.1282,100650.0,100640.0,0.52992403]
[1738640124034,0.23058506,100650.0,100640.0,0.55794786]
[1738640124641,0.23058506,100650.0,100640.0,0.69044389]
[1738640127939,0.23058506,100650.0,100640.0,0.69055059]
[1738640129850,0.23058506,100650.0,100640.0,0.54055059]
[1738640130913,0.55228506,100650.0,100640.0,0.01062656]
[1738640131135,0.55228506,100650.0,100640.0,0.1491527]
[1738640131341,0.55228506,100650.0,100640.0,0.0001067]
[1738640132024,0.55228506,100650.0,100640.0,0.1491527]
[1738640133022,0.56207236,100650.0,100640.0,0.0001067]
[1738640133234,0.56207236,100650.0,100640.0,0.28164873]
[1738640133413,0.56207236,100650.0,100640.0,0.1491527]
[1738640134582,0.56927236,100650.0,100640.0,0.1491527]
[1738640135748,0.56927236,100650.0,100640.0,0.28164873]
[1738640136156,0.5742339,100650.0,100640.0,0.28164873]
[1738640136330,0.5742339,100650.0,100640.0,0.1491527]
[1738640141213,0.62124141,100650.0,100640.0,0.0001067]
[1738640141585,0.63124141,100650.0,100640.0,0.0001067]
[1738640141775,0.6142339,100650.0,100640.0,0.0001067]
[1738640141922,0.3255339,100650.0,100640.0,0.0001067]
[1738640142787,0.31078506,100650.0,100640.0,0.0001067]
[1738640143344,0.26778506,100650.0,100640.0,0.0001067]
[1738640143552,0.27778506,100650.0,100640.0,0.0001067]
[1738640144069,0.26778506,100650.0,100640.0,0.0001067]
[1738640144962,0.26778506,100650.0,100640.0,0.1491527]
[1738640146135,0.26778506,100650.0,100640.0,0.28164873]
[1738640146338,0.23778506,100650.0,100640.0,0.28164873]
[1738640147603,0.23778506,100650.0,100640.0,0.1491527]
[1738640147865,0.24757187,100650.0,100640.0,0.1491527]
[1738640149610,0.2525348,100650.0,100640.0,0.1491527]
[1738640150916,0.2525348,100650.0,100640.0,0.15939014]
[1738640151942,0.5742348,100650.0,100640.0,0.15939014]
[1738640152985,0.56927187,100650.0,100640.0,0.15939014]
[1738640157892,0.59927187,100650.0,100640.0,0.15939014]
[1738640159383,0.58948506,100650.0,100640.0,0.15939014]
[1738640160023,0.58948506,100650.0,100640.0,0.01034414]
[1738640160229,0.65497043,100650.0,100640.0,0.0001067]
[1738640160430,0.1271,100640.0,100630.0,0.198736]
[1738640160632,0.4035,100630.0,100620.0,0.20908786]
[1738640160834,0.55458506,100630.0,100620.0,0.20908786]
[1738640162264,0.56440333,100630.0,100620.0,0.20908786]
[1738640162631,0.56440333,100630.0,100620.0,0.20919456]
[1738640163408,0.56440333,100630.0,100620.0,0.21983011]
[1738640165133,0.56440333,100630.0,100620.0,0.20919456]
[1738640165687,0.56440333,100630.0,100620.0,0.1988597]
[1738640167287,0.56440333,100630.0,100620.0,0.0001067]
[1738640167433,0.56440333,100630.0,100620.0,0.1491817]
[1738640168481,0.65217037,100630.0,100620.0,0.1491817]
[1738640169872,0.33047037,100630.0,100620.0,0.1491817]
[1738640171195,0.24270333,100630.0,100620.0,0.1491817]
[1738640171387,0.23288506,100630.0,100620.0,0.1491817]
[1738640172014,0.26495027,100630.0,100620.0,0.1491817]
[1738640172423,0.23288506,100630.0,100620.0,0.1491817]
[1738640174446,0.3206521,100630.0,100620.0,0.1491817]
[1738640175053,0.33045389,100630.0,100620.0,0.1491817]
[1738640178467,0.3206521,100630.0,100620.0,0.1491817]
[1738640179648,0.3206521,100630.0,100620.0,0.0001067]
[1738640179870,0.36798932,100630.0,100620.0,0.0001067]
[1738640180188,0.38798932,100630.0,100620.0,0.0001067]
[1738640181789,0.52048535,100630.0,100620.0,0.0001067]
[1738640183024,0.43271831,100630.0,100620.0,0.0001067]
[1738640183613,0.43991831,100630.0,100620.0,0.0001067]
[1738640184688,0.39258109,100630.0,100620.0,0.0001067]
[1738640187258,0.49746109,100630.0,100620.0,0.0001067]
[1738640189403,0.47746109,100630.0,100620.0,0.0001067]
[1738640190392,0.1369,100610.0,100600.0,0.01043671]
[1738640190771,0.23928506,100610.0,100600.0,0.01043671]
[1738640191492,0.23928506,100610.0,100600.0,0.16043671]
[1738640191730,0.23928506,100610.0,100600.0,0.16057857]
[1738640192260,0.23928506,100610.0,100600.0,0.15024866]
[1738640192588,0.23928506,100610.0,100600.0,0.16054108]
[1738640193762,0.32728411,100610.0,100600.0,0.16054108]
[1738640195081,0.40643212,100610.0,100600.0,0.16054108]
[1738640195461,0.32728411,100610.0,100600.0,0.16054108]
[1738640196672,0.31728411,100610.0,100600.0,0.30964608]
[1738640196868,0.32452411,100610.0,100600.0,0.33658168]
[1738640197112,0.31728411,100610.0,100600.0,0.33658168]
[1738640197276,0.19762411,100610.0,100600.0,0.46907771]
[1738640197477,0.19762411,100610.0,100600.0,0.33658168]
[1738640198477,0.33931895,100610.0,100600.0,0.18747668]
[1738640198733,0.27502411,100610.0,100600.0,0.33658168]
[1738640198933,0.27502411,100610.0,100600.0,0.30964608]
[1738640199052,0.1968221,100610.0,100600.0,0.30964608]
[1738640199257,0.2528221,100610.0,100600.0,0.16054108]
[1738640199896,0.2828221,100610.0,100600.0,0.01054108]
[1738640200135,0.35754634,100610.0,100600.0,0.16054108]
[1738640200906,0.3477493,100610.0,100600.0,0.16054108]
[1738640201224,0.44574835,100610.0,100600.0,0.01054108]
[1738640201843,0.57824438,100610.0,100600.0,0.01054108]
[1738640202005,0.44574835,100610.0,100600.0,0.01054108]
[1738640202525,0.76744835,100610.0,100600.0,0.01054108]
[1738640203128,0.96522014,100610.0,100600.0,0.01054108]
[1738640203379,0.1424,100580.0,100560.0,0.35220817]
[1738640203564,0.10962506,100570.0,100560.0,0.15332817]
[1738640203780,0.10962506,100570.0,100560.0,0.16351407]
[1738640203986,0.19272506,100570.0,100560.0,0.01435207]
[1738640204200,0.32522109,100570.0,100560.0,0.01435207]
[1738640204524,0.28139547,100570.0,100560.0,0.00416617]
[1738640204884,0.28153691,100570.0,100560.0,0.15416617]
[1738640205337,0.28153691,100570.0,100560.0,0.00416617]
[1738640205338,0.31216635,100570.0,100560.0,0.00416617]
[1738640205548,0.28153691,100570.0,100560.0,0.00416617]
[1738640205692,0.27153691,100570.0,100560.0,0.00416617]
[1738640205893,0.18843691,100570.0,100560.0,0.30333017]
[1738640206087,0.13913691,100570.0,100560.0,0.318725]
[1738640206453,0.1097665,100570.0,100560.0,0.30333017]
[1738640206594,0.1097665,100570.0,100560.0,0.32633017]
[1738640206798,0.12452404,100570.0,100560.0,0.32633017]
[1738640207038,0.12452404,100570.0,100560.0,0.35326577]
[1738640208017,0.12452404,100570.0,100560.0,0.4857618]
[1738640208262,0.12452404,100570.0,100560.0,0.4807618]
[1738640208774,0.11955714,100570.0,100560.0,0.50578794]
[1738640208932,1.61955714,100570.0,100560.0,0.5991808]
[1738640209534,1.61955714,100570.0,100560.0,0.39598477]
[1738640209740,1.61955714,100570.0,100560.0,0.39609157]
[1738640209946,1.61951714,100570.0,100560.0,0.39609157]
[1738640210152,1.60995078,100570.0,100560.0,0.5285876]
[1738640210977,1.60995078,100570.0,100560.0,0.5055876]
[1738640212746,0.10995078,100570.0,100560.0,0.5055876]
[1738640214506,0.10995078,100570.0,100560.0,0.37309157]
[1738640215133,0.10995078,100570.0,100560.0,0.5055876]
[1738640217257,0.18745078,100570.0,100560.0,0.32112983]
[1738640217462,0.18745078,100570.0,100560.0,0.29843697]
[1738640218276,0.19918431,100570.0,100560.0,0.29843697]
[1738640218478,0.22850696,100570.0,100560.0,0.29843697]
[1738640219308,0.27820696,100570.0,100560.0,0.29843697]
[1738640219505,0.30750338,100570.0,100560.0,0.0001068]
[1738640219673,0.31750338,100570.0,100560.0,0.0001068]
[1738640219870,0.31750338,100570.0,100560.0,0.1501068]
[1738640220078,0.30750338,100570.0,100560.0,0.1501068]
[1738640220277,0.31750338,100570.0,100560.0,0.1501068]
[1738640220483,0.30750338,100570.0,100560.0,0.1501068]
[1738640220715,0.27100696,100570.0,100560.0,0.2992708]
[1738640220938,0.24888431,100570.0,100560.0,0.2992708]
[1738640221392,0.12168431,100570.0,100560.0,0.43176683]
[1738640221599,0.12470801,100570.0,100560.0,0.43176683]
[1738640222009,0.12470801,100570.0,100560.0,0.2992708]
[1738640225056,0.12470801,100570.0,100560.0,0.43176683]
[1738640225317,0.15406186,100570.0,100560.0,0.43176683]
[1738640225726,0.15406186,100570.0,100560.0,0.45870243]
[1738640226274,0.14686186,100570.0,100560.0,0.45870243]
[1738640226466,0.15406186,100570.0,100560.0,0.48640655]
[1738640226644,0.14686186,100570.0,100560.0,0.48640655]
[1738640226834,1.65406186,100570.0,100560.0,0.61890258]
[1738640227030,1.65406186,100570.0,100560.0,0.48640655]
[1738640227442,1.65406186,100570.0,100560.0,0.45445969]
[1738640227668,1.62470801,100570.0,100560.0,0.45445969]
[1738640227860,1.60995078,100570.0,100560.0,0.45445969]
[1738640229660,1.60999078,100570.0,100560.0,0.66377854]
[1738640229880,0.11021506,100570.0,100560.0,0.69071414]
[1738640230539,0.10999078,100570.0,100560.0,0.69071414]
[1738640230748,0.10999078,100570.0,100560.0,0.53128251]
[1738640231419,0.10275078,100570.0,100560.0,0.53128251]
[1738640231615,0.10999078,100570.0,100560.0,0.53128251]
[1738640231764,0.10999078,100570.0,100560.0,0.52515969]
[1738640231966,0.10999078,100570.0,100560.0,0.43176683]
[1738640232164,0.10999078,100570.0,100560.0,0.2992708]
[1738640232577,0.10999078,100570.0,100560.0,0.43176683]
[1738640233258,0.11978142,100570.0,100560.0,0.43176683]
[1738640235623,0.11978142,100570.0,100560.0,0.4584063]
[1738640235837,0.11978142,100570.0,100560.0,0.43176683]
[1738640238539,0.16828142,100570.0,100560.0,0.43176683]
[1738640239810,0.11978142,100570.0,100560.0,0.43176683]
[1738640240553,0.01015636,100570.0,100560.0,0.67903255]
[1738640240801,0.01015636,100570.0,100560.0,0.60833255]
[1738640241020,0.01015636,100570.0,100560.0,0.61075178]
[1738640241716,0.01015636,100570.0,100560.0,0.47825575]
[1738640241975,0.11254142,100570.0,100560.0,0.2992708]
[1738640242208,0.19644547,100570.0,100560.0,0.2992708]
[1738640242441,0.16888142,100570.0,100560.0,0.2992708]
[1738640242940,0.24518142,100570.0,100560.0,0.2992708]
[1738640243461,0.24518142,100570.0,100560.0,0.0001068]
[1738640244058,0.24518142,100570.0,100560.0,0.1501068]
[1738640244674,0.23539078,100570.0,100560.0,0.1501068]
[1738640245650,0.26972976,100570.0,100560.0,0.1501068]
[1738640245857,0.23539078,100570.0,100560.0,0.1501068]
[1738640246435,0.26539078,100570.0,100560.0,0.1501068]
[1738640248595,0.26539078,100570.0,100560.0,0.2992708]
[1738640249153,0.25815078,100570.0,100560.0,0.43176683]
[1738640249355,0.14003078,100570.0,100560.0,0.45700777]
[1738640249664,0.14003078,100570.0,100560.0,0.48000777]
[1738640250339,0.14003078,100570.0,100560.0,0.47665419]
[1738640250977,0.14003078,100570.0,100560.0,0.45476683]
[1738640251203,0.23480895,100570.0,100560.0,0.2992708]
[1738640251407,0.15480895,100570.0,100560.0,0.43176683]
[1738640252322,0.15480895,100570.0,100560.0,0.45476683]
[1738640252678,0.14984227,100570.0,100560.0,0.45476683]
[1738640255388,0.14984227,100570.0,100560.0,0.47464541]
[1738640255630,0.14984227,100570.0,100560.0,0.60714144]
[1738640255828,0.14256227,100570.0,100560.0,0.60714144]
[1738640256030,0.15476888,100570.0,100560.0,0.60714144]
[1738640256182,0.15476888,100570.0,100560.0,0.47464541]
[1738640256384,0.15476888,100570.0,100560.0,0.45476683]
[1738640257465,0.15476888,100570.0,100560.0,0.2992708]
[1738640257671,0.14980227,100570.0,100560.0,0.43176683]
[1738640258621,0.23809078,100570.0,100560.0,0.43176683]
[1738640264785,0.23085078,100570.0,100560.0,0.43176683]
[1738640264962,0.23813078,100570.0,100560.0,0.43176683]
[1738640265171,0.22831929,100570.0,100560.0,0.43176683]
[1738640269628,0.22831929,100570.0,100560.0,0.45392815]
[1738640270242,0.22831929,100570.0,100560.0,0.32143212]
[1738640270443,0.35391929,100570.0,100560.0,0.2992708]
[1738640270622,0.35391929,100570.0,100560.0,0.43176683]
[1738640272664,0.22831929,100570.0,100560.0,0.45476683]
[1738640272961,0.23813485,100570.0,100560.0,0.45476683]
[1738640275092,0.13574979,100570.0,100560.0,0.60909898]
[1738640275558,0.14071637,100570.0,100560.0,0.60909898]
[1738640275691,0.05242786,100570.0,100560.0,0.60909898]
[1738640276303,0.04537214,100570.0,100560.0,0.60909898]
[1738640276646,0.05242786,100570.0,100560.0,0.60909898]
[1738640277053,0.05265214,100570.0,100560.0,0.60909898]
[1738640277254,0.05242786,100570.0,100560.0,0.60909898]
[1738640277431,0.03787,100570.0,100560.0,0.60909898]
[1738640277630,0.03764572,100570.0,100560.0,0.60909898]
[1738640278495,0.03036572,100570.0,100560.0,0.60909898]
[1738640278648,0.03760572,100570.0,100560.0,0.60909898]
[1738640279445,0.03760572,100570.0,100560.0,0.47660295]
[1738640279851,0.03760572,100570.0,100560.0,0.60909898]
[1738640281027,0.03783,100570.0,100560.0,0.60909898]
[1738640281229,0.03760572,100570.0,100560.0,0.60909898]
[1738640281887,0.03783,100570.0,100560.0,0.60909898]
[1738640282697,0.03760572,100570.0,100560.0,0.60909898]
[1738640283241,0.03783,100570.0,100560.0,0.60909898]
[1738640283683,0.03760572,100570.0,100560.0,0.60909898]
[1738640284236,0.03783,100570.0,100560.0,0.60909898]
[1738640284390,0.03760572,100570.0,100560.0,0.60909898]
[1738640285004,0.03059,100570.0,100560.0,0.60909898]
[1738640285205,0.03036572,100570.0,100560.0,1.02109541]
[1738640285686,7.2e-07,100570.0,100560.0,1.02109541]
[1738640285888,0.01003984,100580.0,100570.0,0.39376784]
[1738640286213,5.6e-07,100580.0,100570.0,1.15401998]
[1738640287101,0.08828851,100590.0,100580.0,0.392835]
[1738640287468,0.08828851,100590.0,100580.0,0.70767389]
[1738640287684,0.01224536,100610.0,100600.0,0.299105]
[1738640287879,0.01224536,100610.0,100600.0,0.43160103]
[1738640288233,0.01224536,100610.0,100600.0,0.45015916]
[1738640288975,1.62982428,100620.0,100610.0,0.29909]
[1738640289133,1.54662428,100620.0,100610.0,0.43158603]
[1738640289575,1.50022428,100620.0,100610.0,0.56408206]
[1738640289750,1.50022428,100620.0,100610.0,0.58708206]
[1738640290174,1.5003669,100620.0,100610.0,0.58708206]
[1738640290598,0.0003669,100620.0,100610.0,0.58708206]
[1738640290775,0.0003669,100620.0,100610.0,0.65778206]
[1738640291023,0.0003669,100620.0,100610.0,0.67628488]
[1738640291995,0.0003669,100620.0,100610.0,1.13164285]
[1738640292970,0.0003669,100620.0,100610.0,1.13153478]
[1738640293441,0.0003669,100620.0,100610.0,0.90548078]
[1738640293642,0.0003669,100620.0,100610.0,0.91578438]
[1738640294048,0.0772669,100620.0,100610.0,0.91578438]
[1738640294616,0.0772669,100620.0,100610.0,1.04828041]
[1738640294817,0.0772669,100620.0,100610.0,0.91578438]
[1738640296133,0.0772669,100620.0,100610.0,0.89728156]
[1738640297588,0.0772669,100620.0,100610.0,0.46478156]
[1738640297794,0.22875196,100620.0,100610.0,0.46478156]
[1738640298898,0.22875196,100620.0,100610.0,0.44178156]
[1738640302481,0.22875196,100620.0,100610.0,0.44188826]
[1738640309257,0.24046394,100620.0,100610.0,0.44188826]
[1738640311009,0.24046394,100620.0,100610.0,0.29908863]
[1738640311906,0.24046394,100620.0,100610.0,0.43158466]
[1738640312517,0.23852961,100620.0,100610.0,0.43158466]
[1738640314036,0.24349334,100620.0,100610.0,0.43158466]
[1738640315948,0.23852961,100620.0,100610.0,0.43158466]
[1738640316555,0.23852961,100620.0,100610.0,0.29908863]
[1738640317382,0.24576961,100620.0,100610.0,0.43158466]
[1738640318184,0.23599196,100620.0,100610.0,0.43158466]
[1738640319583,0.23599196,100620.0,100610.0,0.45014338]
[1738640321578,0.0003669,100620.0,100610.0,0.58263941]
[1738640321781,0.0003669,100620.0,100610.0,0.65280765]
[1738640321977,9e-07,100620.0,100610.0,0.72350765]